bitfinex-derivatives/quotes_BTCF0:USTF0_20250211
["timestamp","ask_amount","ask_price","bid_price","bid_amount"]
[1739282730706,0.5674978,96745.0,96744.0,0.2075]
[1739282731205,0.2066978,96745.0,96744.0,0.2075]
[1739282732600,0.001,96745.0,96744.0,0.2225]
[1739282733302,0.002,96745.0,96744.0,1.7075]
[1739282734498,0.000155,96754.0,96745.0,0.2066978]
[1739282734705,0.000155,96754.0,96751.0,0.3608]
[1739282735407,0.000155,96754.0,96752.0,0.2066829]
[1739282736710,0.002155,96754.0,96752.0,0.2066829]
[1739282737097,0.004155,96754.0,96752.0,0.2066829]
[1739282737303,0.009155,96754.0,96752.0,0.2076829]
[1739282738912,0.009155,96754.0,96753.0,1.5]
[1739282740003,0.010155,96754.0,96753.0,1.501]
[1739282740703,0.010155,96754.0,96753.0,0.001]
[1739282745410,0.010155,96754.0,96753.0,1.501]
[1739282748101,0.010155,96754.0,96753.0,0.001]
[1739282754618,0.2066387,96773.0,96755.0,0.2066762]
[1739282754820,0.2066387,96773.0,96764.0,0.3608]
[1739282755114,0.00155049,96774.0,96764.0,0.3608]
[1739282755310,0.00155049,96774.0,96767.0,0.2066505]
[1739282755711,0.009,96773.0,96767.0,0.2066505]
[1739282756417,0.2156383,96773.0,96767.0,0.2066505]
[1739282756624,0.2186383,96773.0,96767.0,0.2066505]
[1739282757006,0.2066383,96773.0,96767.0,0.2066505]
[1739282757218,0.2126383,96773.0,96767.0,0.2086505]
[1739282758515,0.006,96773.0,96772.0,0.2066401]
[1739282758713,0.006,96773.0,96768.0,0.2066486]
[1739282758910,0.006,96773.0,96767.0,0.002]
[1739282759215,0.2109,96782.0,96767.0,0.002]
[1739282759216,0.2065715,96805.0,96777.0,0.0516571]
[1739282759423,0.51190483,96807.0,96789.0,0.2066028]
[1739282759424,0.12297143,96800.0,96789.0,0.2066028]
[1739282759610,0.106,96802.0,96789.0,0.2066028]
[1739282759812,0.3608,96799.0,96785.0,1.5]
[1739282760016,0.2066122,96786.0,96774.0,0.2066337]
[1739282760221,0.2066132,96785.0,96777.0,0.2066293]
[1739282760521,0.000155,96790.0,96777.0,1.5]
[1739282760719,0.000155,96790.0,96780.0,0.12297143]
[1739282760924,0.000155,96790.0,96780.0,0.32959443]
[1739282761114,0.000155,96790.0,96782.0,0.2066185]
[1739282761315,0.000155,96790.0,96780.0,0.48377143]
[1739282761515,0.003,96785.0,96784.0,0.2066145]
[1739282762526,0.003,96785.0,96780.0,0.37495903]
[1739282762820,0.01,96785.0,96784.0,0.001]
[1739282763021,0.01,96785.0,96784.0,0.2076145]
[1739282763228,0.007,96785.0,96784.0,0.2076145]
[1739282764221,0.007,96785.0,96784.0,0.21866826]
[1739282764618,0.000155,96790.0,96786.0,0.2066093]
[1739282764824,0.000155,96790.0,96787.0,0.01105376]
[1739282765128,0.000155,96790.0,96786.0,0.2066093]
[1739282765328,0.000155,96790.0,96787.0,0.2066078]
[1739282765527,0.000155,96790.0,96788.0,0.5674054]
[1739282766327,0.007155,96790.0,96789.0,0.0110217]
[1739282766522,0.008155,96790.0,96789.0,0.0110217]
[1739282767629,0.008155,96790.0,96789.0,0.2229217]
[1739282768225,0.008155,96790.0,96789.0,0.2239217]
[1739282768525,0.008155,96790.0,96789.0,0.22397737]
[1739282769318,0.008155,96790.0,96789.0,0.43058117]
[1739282770134,0.008155,96790.0,96789.0,0.43158117]
[1739282770327,0.007155,96790.0,96789.0,0.43358117]
[1739282770829,0.007155,96790.0,96789.0,0.43058117]
[1739282771130,0.007155,96790.0,96789.0,0.43358117]
[1739282771731,0.000155,96790.0,96789.0,0.43858117]
[1739282772929,0.000155,96790.0,96789.0,0.43758117]
[1739282773516,0.000155,96790.0,96789.0,0.01907737]
[1739282773723,0.2066273,96778.0,96777.0,0.24690186]
[1739282773926,0.2066256,96779.0,96777.0,0.24690186]
[1739282774222,0.2066337,96776.0,96771.0,0.30928659]
[1739282774429,0.2066342,96775.0,96771.0,0.30928659]
[1739282774724,0.206637,96774.0,96771.0,0.30928659]
[1739282775234,0.206621,96781.0,96771.0,0.30928659]
[1739282775531,0.0894,96789.0,96777.0,0.3608]
[1739282775727,0.0894,96789.0,96779.0,0.12297143]
[1739282776035,0.2065978,96792.0,96785.0,0.2066121]
[1739282776225,0.10355026,96794.0,96785.0,0.2066121]
[1739282776423,0.2065997,96791.0,96786.0,0.20661]
[1739282776628,0.2065997,96791.0,96779.0,0.12297143]
[1739282776832,0.2065997,96791.0,96788.0,0.2066041]
[1739282777133,0.10355026,96794.0,96789.0,0.01817593]
[1739282777328,0.00155026,96794.0,96789.0,0.01817593]
[1739282778223,0.00155026,96794.0,96788.0,0.22048082]
[1739282778726,0.00155026,96794.0,96789.0,0.001]
[1739282779426,0.00155026,96794.0,96788.0,0.22148082]
[1739282779629,0.005155,96790.0,96788.0,0.22148082]
[1739282780025,0.005155,96790.0,96789.0,0.002]
[1739282780616,0.006155,96790.0,96788.0,0.22148082]
[1739282781022,0.007155,96790.0,96789.0,0.001]
[1739282781331,0.006155,96790.0,96789.0,0.001]
[1739282781827,0.006155,96790.0,96788.0,0.22148082]
[1739282781828,0.005155,96790.0,96788.0,0.22148082]
[1739282782522,0.000155,96790.0,96788.0,0.22048082]
[1739282782723,0.000155,96790.0,96789.0,0.002]
[1739282782924,0.001155,96790.0,96789.0,0.002]
[1739282783232,0.001155,96790.0,96789.0,0.2086038]
[1739282783433,0.000155,96790.0,96789.0,0.2086038]
[1739282784430,0.000155,96790.0,96789.0,0.002]
[1739282785024,0.000155,96790.0,96789.0,0.004]
[1739282785733,0.000155,96790.0,96789.0,0.01529017]
[1739282786124,0.000155,96790.0,96789.0,0.01329017]
[1739282786329,0.000155,96790.0,96789.0,0.01529017]
[1739282787625,0.000155,96790.0,96789.0,0.22189397]
[1739282787925,0.000155,96790.0,96789.0,0.01529017]
[1739282788324,0.000155,96790.0,96789.0,0.03345244]
[1739282788732,0.000155,96790.0,96789.0,0.03352095]
[1739282789336,0.000155,96790.0,96789.0,0.01435395]
[1739282789535,0.000155,96790.0,96789.0,0.21895775]
[1739282789731,0.000155,96790.0,96789.0,0.22095775]
[1739282790124,0.000155,96790.0,96789.0,0.21895775]
[1739282790329,0.15110483,96830.0,96789.0,0.69515395]
[1739282790627,0.12297143,96820.0,96805.0,0.3608]
[1739282790826,0.0938,96829.0,96810.0,0.12297143]
[1739282791029,0.2065274,96825.0,96811.0,0.01135395]
[1739282791224,0.0938,96829.0,96818.0,0.206542]
[1739282791430,0.000155,96828.0,96819.0,0.01135395]
[1739282791735,0.2065264,96826.0,96820.0,0.01135395]
[1739282791941,0.2065264,96826.0,96821.0,0.01135395]
[1739282792233,0.2065264,96826.0,96815.0,0.206548]
[1739282792429,0.2065264,96826.0,96819.0,0.001]
[1739282792835,0.01655021,96827.0,96819.0,0.001]
[1739282793134,0.01655021,96827.0,96826.0,0.2065249]
[1739282793332,0.01655021,96827.0,96826.0,0.21753639]
[1739282793530,0.22707301,96827.0,96826.0,0.01101149]
[1739282793929,0.20807301,96827.0,96826.0,0.01101149]
[1739282794127,0.00655021,96827.0,96826.0,0.01101149]
[1739282794538,0.00155021,96827.0,96826.0,0.01101149]
[1739282794842,0.01955021,96827.0,96826.0,0.10421149]
[1739282795529,0.5673131,96832.0,96826.0,0.32455781]
[1739282795730,0.2065197,96829.0,96827.0,0.01101149]
[1739282795937,0.2065197,96829.0,96828.0,0.01101149]
[1739282797335,0.2095197,96829.0,96828.0,0.01201149]
[1739282797739,0.2095197,96829.0,96828.0,0.03011572]
[1739282798340,0.004,96829.0,96828.0,0.03111572]
[1739282800729,0.004,96829.0,96828.0,0.032496]
[1739282801143,0.004,96829.0,96828.0,0.04863404]
[1739282801344,0.004,96829.0,96828.0,0.04863172]
[1739282802344,0.00015492,96838.0,96837.0,0.2065015]
[1739282802532,0.2179,96869.0,96837.0,0.69129368]
[1739282802751,0.2602,96882.0,96867.0,0.2064368]
[1739282803042,0.2602,96882.0,96868.0,0.02989618]
[1739282803239,0.18057215,96883.0,96874.0,0.2064226]
[1739282803443,0.18057215,96883.0,96874.0,0.23631878]
[1739282803852,0.18057215,96883.0,96874.0,0.39069618]
[1739282804141,0.18057215,96883.0,96882.0,0.5672056]
[1739282804142,0.15131624,96883.0,96882.0,0.5672056]
[1739282804338,0.15131624,96883.0,96882.0,0.70608985]
[1739282804542,0.15613771,96906.0,96882.0,0.5158133]
[1739282804736,0.15613771,96906.0,96903.0,0.3608]
[1739282804944,0.15613771,96906.0,96904.0,0.05416425]
[1739282805146,0.15613771,96906.0,96905.0,0.05416425]
[1739282805344,0.15613771,96906.0,96905.0,0.02989618]
[1739282805739,0.15613771,96906.0,96905.0,0.04315021]
[1739282806042,0.3608,96938.0,96905.0,0.04315021]
[1739282806043,0.0857,96926.0,96905.0,0.05927926]
[1739282806249,0.0808,96937.0,96919.0,0.3608]
[1739282806447,0.0808,96937.0,96931.0,0.3608]
[1739282806641,0.3608,96938.0,96932.0,0.05783212]
[1739282806842,0.3608,96938.0,96931.0,0.3608]
[1739282806843,0.3608,96938.0,96933.0,0.05783212]
[1739282807037,0.3608,96950.0,96934.0,0.05783212]
[1739282807238,0.3608,96950.0,96940.0,0.12297143]
[1739282807443,0.3608,96950.0,96941.0,0.05783212]
[1739282807648,0.3608,96950.0,96942.0,0.05783212]
[1739282807945,0.3608,96950.0,96943.0,0.05757426]
[1739282808148,0.3608,96950.0,96931.0,0.3618]
[1739282808149,0.3608,96950.0,96944.0,0.05757432]
[1739282808451,0.5670714,96945.0,96934.0,0.001]
[1739282808654,0.3608,96935.0,96934.0,0.001]
[1739282808854,0.3608,96935.0,96934.0,0.03256828]
[1739282809145,0.3608,96957.0,96934.0,0.05685311]
[1739282809349,0.206248,96956.0,96941.0,0.3608]
[1739282809647,0.12297143,96951.0,96942.0,0.03156844]
[1739282809849,0.12297143,96951.0,96934.0,0.001]
[1739282809850,0.3608,96944.0,96943.0,0.03137775]
[1739282810055,0.5670736,96944.0,96943.0,0.03137775]
[1739282810275,0.5670736,96944.0,96943.0,5e-08]
[1739282811371,0.5670736,96944.0,96943.0,0.00100005]
[1739282812773,0.5670736,96944.0,96943.0,5e-08]
[1739282812973,0.5670736,96944.0,96943.0,0.00100005]
[1739282813576,0.5670736,96944.0,96943.0,5e-08]
[1739282814470,0.5670736,96944.0,96943.0,0.00100005]
[1739282815272,0.5670736,96944.0,96943.0,0.00300005]
[1739282816171,0.5670736,96944.0,96943.0,0.003]
[1739282816371,0.5670736,96944.0,96943.0,0.002]
[1739282816582,0.5670736,96944.0,96943.0,0.003]
[1739282817077,0.2062736,96944.0,96943.0,0.003]
[1739282817472,0.2062736,96944.0,96943.0,0.002]
[1739282817977,0.3608,96957.0,96953.0,0.2062539]
[1739282818370,0.36234785,96965.0,96953.0,0.2062539]
[1739282818371,0.00154785,96965.0,96953.0,0.2062539]
[1739282818583,0.00154785,96965.0,96960.0,0.3608]
[1739282819976,0.00154785,96965.0,96956.0,0.0837]
[1739282820284,0.00154785,96965.0,96960.0,0.001]
[1739282820285,0.2062374,96961.0,96960.0,0.001]
[1739282820489,0.2062693,96946.0,96940.0,0.0831]
[1739282820669,0.2062693,96946.0,96945.0,0.03186798]
[1739282820876,0.2062693,96946.0,96945.0,0.39266798]
[1739282821370,0.2062508,96955.0,96945.0,0.39266798]
[1739282821579,0.2062508,96955.0,96946.0,0.0184793]
[1739282821781,0.4471,96964.0,96947.0,0.0184793]
[1739282822082,0.2062613,96950.0,96948.0,0.0184793]
[1739282822279,0.2062347,96963.0,96949.0,0.23639389]
[1739282822474,0.00154785,96965.0,96953.0,0.54462338]
[1739282822672,0.00154785,96965.0,96954.0,0.02928983]
[1739282822875,0.00154785,96965.0,96955.0,0.02928983]
[1739282823081,0.1756,96984.0,96961.0,0.3608]
[1739282823272,0.0876,96984.0,96973.0,0.3608]
[1739282823485,0.2062091,96975.0,96974.0,0.01126506]
[1739282823984,0.2062091,96975.0,96974.0,0.02932264]
[1739282824180,0.2062091,96975.0,96974.0,0.01126506]
[1739282824681,0.2062091,96975.0,96974.0,0.01129425]
[1739282824885,0.2062091,96975.0,96974.0,0.02936562]
[1739282825181,0.2061919,96983.0,96974.0,0.02936562]
[1739282825379,0.088,96994.0,96983.0,0.206189]
[1739282825589,0.206162,96997.0,96984.0,0.01129425]
[1739282825781,0.2061762,96990.0,96985.0,0.01129425]
[1739282825978,0.5669592,96998.0,96986.0,0.01129425]
[1739282826276,0.1,97000.0,96991.0,0.3608]
[1739282826475,0.1,97000.0,96999.0,0.3608]
[1739282826675,0.1,97000.0,96999.0,0.37203292]
[1739282827080,0.6669545,97000.0,96999.0,0.01123292]
[1739282827287,0.4608,97000.0,96962.0,0.10616]
[1739282827589,0.5669821,96987.0,96964.0,0.1721]
[1739282827780,0.5669821,96987.0,96965.0,0.2062269]
[1739282828185,0.5669821,96987.0,96970.0,0.18382338]
[1739282828386,0.5669821,96987.0,96963.0,0.00154695]
[1739282828387,0.2062289,96965.0,96963.0,0.00154695]
[1739282829190,0.2062544,96953.0,96952.0,0.3608]
[1739282830392,0.2062544,96953.0,96943.0,0.08855467]
[1739282830393,0.2062736,96944.0,96943.0,0.00015467]
[1739282830894,0.2022736,96944.0,96943.0,0.00015467]
[1739282831592,0.2012736,96944.0,96943.0,0.00015467]
[1739282831783,0.2062906,96936.0,96935.0,0.1854792]
[1739282831979,0.5670906,96936.0,96935.0,0.1854792]
[1739282832181,0.5670906,96936.0,96929.0,0.24738399]
[1739282832182,0.2063034,96930.0,96929.0,0.24738399]
[1739282832381,0.2063034,96930.0,96929.0,0.11698399]
[1739282832580,0.3608,96937.0,96929.0,0.11698399]
[1739282832979,0.3608,96937.0,96929.0,0.32328799]
[1739282833186,0.3608,96937.0,96929.0,0.11698399]
[1739282833390,0.2062906,96936.0,96929.0,0.11698399]
[1739282834078,0.3608,96937.0,96929.0,0.11698399]
[1739282834079,0.5671034,96930.0,96929.0,0.11698399]
[1739282834278,0.5671034,96930.0,96923.0,0.00015467]
[1739282834279,0.2063162,96924.0,96923.0,0.00015467]
[1739282834486,0.2013162,96924.0,96923.0,0.00015467]
[1739282834681,0.5013162,96924.0,96923.0,0.00015467]
[1739282834889,0.2063587,96904.0,96903.0,0.30928659]
[1739282835091,0.9279587,96904.0,96903.0,0.30928659]
[1739282835284,0.2063758,96896.0,96880.0,0.30891678]
[1739282835491,0.5671758,96896.0,96880.0,0.30891678]
[1739282835795,0.2064078,96881.0,96880.0,0.30891678]
[1739282835985,0.5672078,96881.0,96880.0,0.30891678]
[1739282836587,0.1924078,96881.0,96880.0,0.30891678]
[1739282837185,0.1924078,96881.0,96880.0,0.31991678]
[1739282837995,0.1924078,96881.0,96880.0,0.32491678]
[1739282838499,0.2064016,96884.0,96880.0,0.2224083]
[1739282838989,0.3608,96888.0,96880.0,0.2224083]
[1739282838990,0.3608,96888.0,96880.0,0.016]
[1739282839496,0.3608,96888.0,96887.0,0.206395]
[1739282840091,0.3608,96888.0,96887.0,1.706395]
[1739282841093,0.3608,96888.0,96887.0,1.707395]
[1739282841292,0.3608,96888.0,96887.0,1.709395]
[1739282842091,0.3608,96906.0,96887.0,1.503]
[1739282842292,0.3608,96906.0,96890.0,0.18382338]
[1739282842492,0.3608,96906.0,96903.0,0.2063608]
[1739282842694,0.3608,96914.0,96903.0,0.2063608]
[1739282842889,0.3608,96914.0,96904.0,0.3608]
[1739282844096,0.00215476,96905.0,96904.0,0.3608]
[1739282844298,0.3608,96926.0,96904.0,0.3608]
[1739282844499,0.3608,96926.0,96915.0,0.3608]
[1739282844700,0.3608,96926.0,96917.0,0.2063302]
[1739282845003,0.2062927,96936.0,96923.0,0.3608]
[1739282845498,0.3608,96941.0,96940.0,0.2062821]
[1739282845904,0.3608,96941.0,96924.0,0.1666]
[1739282846097,0.3608,96941.0,96933.0,0.2062969]
[1739282846403,0.3608,96941.0,96931.0,0.2062994]
[1739282846594,0.2062837,96940.0,96924.0,0.17994983]
[1739282846904,0.3718,96941.0,96935.0,0.2062915]
[1739282847201,0.3718,96941.0,96939.0,0.206284]
[1739282847202,0.3748,96941.0,96939.0,0.206284]
[1739282847689,0.3678,96941.0,96939.0,0.206284]
[1739282847889,0.007,96941.0,96939.0,0.206284]
[1739282848089,0.004,96941.0,96939.0,0.206284]
[1739282848293,0.005,96941.0,96932.0,0.3608]
[1739282848899,0.005,96941.0,96934.0,0.2062937]
[1739282849296,0.011,96941.0,96939.0,0.001]
[1739282849799,0.01,96941.0,96939.0,0.001]
[1739282850002,0.012,96941.0,96940.0,0.2062821]
[1739282850305,0.012,96941.0,96939.0,0.001]
[1739282850507,0.006,96941.0,96934.0,0.2062932]
[1739282850807,0.006,96941.0,96932.0,0.3608]
[1739282851006,0.006,96941.0,96936.0,0.20629]
[1739282851312,0.008,96941.0,96936.0,0.20629]
[1739282851809,0.008,96941.0,96940.0,0.2062821]
[1739282852305,0.008,96941.0,96932.0,0.3608]
[1739282852507,0.013,96941.0,96940.0,0.001]
[1739282853005,0.014,96941.0,96940.0,0.001]
[1739282853409,0.014,96941.0,96934.0,0.2062944]
[1739282853410,0.003,96941.0,96934.0,0.2062944]
[1739282853599,0.008,96941.0,96934.0,0.2062944]
[1739282854199,0.005,96941.0,96934.0,0.2062944]
[1739282855304,0.011,96941.0,96940.0,0.5680821]
[1739282855703,0.00119822,96957.0,96940.0,0.3618]
[1739282855902,0.3608,96984.0,96956.0,0.7216]
[1739282856107,0.0858,96987.0,96973.0,0.3608]
[1739282856295,0.3608,96978.0,96964.0,0.3608]
[1739282856499,0.2062168,96971.0,96958.0,0.2062429]
[1739282856705,0.18382338,96970.0,96958.0,0.2062429]
[1739282856902,0.18382338,96970.0,96957.0,0.10196]
[1739282856903,0.2062237,96968.0,96957.0,0.10196]
[1739282857108,0.00015393,96974.0,96957.0,0.10196]
[1739282857302,0.00015393,96974.0,96955.0,0.00015467]
[1739282857303,0.3608,96961.0,96955.0,0.00015467]
[1739282857499,0.00015393,96974.0,96972.0,0.2062137]
[1739282857704,0.00015393,96974.0,96973.0,0.5670119]
[1739282858702,0.00015393,96974.0,96973.0,0.3608]
[1739282859217,0.00015393,96974.0,96970.0,0.3608]
[1739282859422,0.2062199,96970.0,96957.0,0.2062441]
[1739282859712,0.3608,96965.0,96964.0,0.2062311]
[1739282860100,0.00015393,96974.0,96960.0,0.18382338]
[1739282860405,0.00015393,96974.0,96973.0,0.2062119]
[1739282861918,0.28657,96993.0,96968.0,0.1708]
[1739282861919,0.3608,97003.0,96969.0,0.3608]
[1739282862113,0.3608,97003.0,96989.0,0.2061779]
[1739282862318,0.2061364,97009.0,96989.0,0.2061779]
[1739282862615,0.2061381,97008.0,96989.0,0.2061779]
[1739282863212,0.3608,97003.0,96989.0,0.2061779]
[1739282863612,0.3608,97003.0,96989.0,0.2211779]
[1739282863809,0.3608,97003.0,96989.0,0.2271779]
[1739282864518,0.3608,97003.0,96989.0,0.2241779]
[1739282865808,0.3608,97003.0,96996.0,0.2061617]
[1739282866010,0.3608,97003.0,96997.0,0.206159]
[1739282866204,0.3608,97003.0,96989.0,0.009]
[1739282866205,0.3608,97003.0,96992.0,0.2061696]
[1739282866404,0.3608,97003.0,96993.0,0.2061681]
[1739282866927,0.3608,97003.0,96995.0,0.2061651]
[1739282867123,0.3608,97003.0,96990.0,0.18382338]
[1739282867327,0.2061543,97001.0,96992.0,0.003]
[1739282867543,0.00154737,97004.0,96998.0,0.3608]
[1739282867827,0.00154737,97004.0,96999.0,0.2061567]
[1739282869723,0.00154737,97004.0,96999.0,0.2101567]
[1739282870321,0.2060676,97041.0,97032.0,0.206085]
[1739282870517,0.2060676,97041.0,97010.0,0.0515332]
[1739282870518,0.086,97041.0,97024.0,0.18382338]
[1739282870726,0.2920681,97041.0,97031.0,0.2060873]
[1739282870923,0.3608,97044.0,97031.0,0.18382338]
[1739282871236,0.3608,97044.0,97039.0,0.2060715]
[1739282871524,0.3608,97044.0,97034.0,0.18382338]
[1739282871723,0.3608,97052.0,97051.0,0.2060462]
[1739282873221,0.3618,97052.0,97051.0,0.001]
[1739282873418,0.5678441,97052.0,97051.0,0.002]
[1739282874628,0.3618,97052.0,97051.0,0.002]
[1739282875424,0.3608,97052.0,97051.0,0.001]
[1739282875625,0.3608,97052.0,97051.0,0.002]
[1739282876035,0.3608,97113.0,97072.0,0.0515]
[1739282876324,0.00154536,97120.0,97091.0,0.3608]
[1739282876526,0.00154536,97120.0,97099.0,0.3608]
[1739282876725,0.2059038,97119.0,97099.0,0.3608]
[1739282876929,0.0004,97101.0,97099.0,0.3608]
[1739282877323,0.2063407,97101.0,97099.0,0.3608]
[1739282878016,0.2059592,97092.0,97091.0,0.3608]
[1739282878817,0.2059592,97092.0,97091.0,0.3618]
[1739282879423,0.2059592,97092.0,97091.0,0.3608]
[1739282879826,0.3608,97096.0,97077.0,0.3608]
[1739282880134,0.2059889,97078.0,97077.0,0.3608]
[1739282881318,0.3608,97088.0,97070.0,0.3608]
[1739282881319,0.2059995,97073.0,97070.0,0.3608]
[1739282881523,0.3608,97080.0,97053.0,0.3608]
[1739282881524,0.2060399,97054.0,97053.0,0.3608]
[1739282882733,0.2060326,97058.0,97057.0,0.2060281]
[1739282882927,0.2060392,97055.0,97053.0,0.3608]
[1739282883327,0.00015403,97063.0,97062.0,0.2060229]
[1739282883631,0.00015403,97063.0,97062.0,0.5668229]
[1739282885837,0.00015403,97063.0,97062.0,0.5728229]
[1739282886637,0.00115403,97063.0,97062.0,0.5818229]
[1739282886823,0.3612,97101.0,97062.0,0.3758]
[1739282886824,0.2059878,97079.0,97062.0,0.3758]
[1739282887135,0.2059878,97079.0,97076.0,0.3608]
[1739282887932,0.2059751,97085.0,97076.0,0.3608]
[1739282888133,0.0837,97090.0,97084.0,0.3608]
[1739282888431,0.0837,97090.0,97087.0,0.3608]
[1739282888633,0.0837,97090.0,97078.0,0.3608]
[1739282888839,0.2059713,97087.0,97078.0,0.3608]
[1739282889230,0.2059713,97087.0,97086.0,0.3608]
[1739282889627,0.0837,97090.0,97086.0,0.3608]
[1739282890041,0.2059699,97087.0,97086.0,0.3608]
[1739282890242,0.0837,97090.0,97078.0,0.3608]
[1739282890434,0.2059868,97079.0,97078.0,0.3608]
[1739282890833,0.26752338,97090.0,97078.0,0.3608]
[1739282891132,0.2059831,97081.0,97078.0,0.3608]
[1739282891338,0.2059855,97080.0,97078.0,0.3608]
[1739282891538,0.2059868,97079.0,97078.0,0.3608]
[1739282892534,0.26752338,97090.0,97074.0,0.3608]
[1739282892733,0.2060102,97068.0,97057.0,0.3608]
[1739282894043,0.2060102,97068.0,97067.0,0.0031545]
[1739282894338,0.2060314,97058.0,97057.0,0.3608]
[1739282895740,0.2050314,97058.0,97057.0,0.3608]
[1739282896239,0.26387788,97067.0,97028.0,0.00154594]
[1739282896240,0.206078,97037.0,97033.0,0.2060829]
[1739282896442,0.0515087,97057.0,97033.0,0.2060829]
[1739282896443,0.18382338,97050.0,97033.0,0.2060829]
[1739282896634,0.2060824,97034.0,97033.0,0.2060829]
[1739282897935,0.2060866,97032.0,97031.0,0.3608]
[1739282898137,0.2060866,97032.0,97031.0,0.5668887]
[1739282898439,0.0803,97042.0,97031.0,0.5668887]
[1739282898440,0.2060698,97040.0,97031.0,0.3608]
[1739282898739,0.2060698,97040.0,97039.0,0.3608]
[1739282899145,0.2060698,97040.0,97039.0,0.5668717]
[1739282899734,0.2060698,97040.0,97039.0,0.3608]
[1739282900235,0.2060698,97040.0,97039.0,0.3678]
[1739282900442,0.2070698,97040.0,97039.0,0.3828]
[1739282900739,0.2070698,97040.0,97039.0,0.3798]
[1739282901245,0.2070698,97040.0,97039.0,0.019]
[1739282902129,0.2060698,97040.0,97039.0,0.004]
[1739282902334,0.2070698,97040.0,97039.0,0.014]
[1739282903643,0.2070698,97040.0,97039.0,0.3748]
[1739282904241,0.2070698,97040.0,97039.0,0.014]
[1739282905444,0.2060887,97031.0,97030.0,0.3608]
[1739282907037,0.2080887,97031.0,97030.0,0.3608]
[1739282907241,0.2210887,97031.0,97030.0,0.3618]
[1739282908034,0.2080887,97031.0,97030.0,0.3628]
[1739282908651,0.2061015,97025.0,97020.0,0.3608]
[1739282909047,0.0793,97030.0,97020.0,0.3608]
[1739282909353,0.20611,97021.0,97020.0,0.3608]
[1739282910645,0.001,97021.0,97020.0,0.3648]
[1739282911251,0.005,97025.0,97020.0,0.3608]
[1739282911439,0.005,97025.0,97024.0,0.2061036]
[1739282912551,0.2060785,97036.0,97024.0,0.2061036]
[1739282912754,0.2060785,97036.0,97025.0,0.081]
[1739282912951,0.2060785,97036.0,97026.0,0.082]
[1739282913142,0.2060785,97036.0,97028.0,0.3608]
[1739282913550,0.2070785,97036.0,97028.0,0.3608]
[1739282913753,0.2070785,97036.0,97029.0,0.2060929]
[1739282914445,0.0819,97049.0,97028.0,0.3608]
[1739282914446,0.0819,97049.0,97028.0,0.3628]
[1739282914647,0.00154621,97057.0,97041.0,0.2060671]
[1739282914848,0.00154621,97057.0,97056.0,0.2060356]
[1739282915053,0.00154621,97057.0,97056.0,0.5668356]
[1739282915749,0.00154621,97057.0,97056.0,0.579616]
[1739282916154,0.00015458,97066.0,97056.0,0.3735804]
[1739282916353,0.00015458,97066.0,97065.0,0.5668165]
[1739282917148,0.0788,97091.0,97077.0,0.2059893]
[1739282917149,0.2059678,97088.0,97077.0,0.2059893]
[1739282917352,0.2059678,97088.0,97079.0,0.2059848]
[1739282917749,0.3608,97084.0,97065.0,0.3608]
[1739282917950,0.2060224,97063.0,97057.0,0.3608]
[1739282918157,0.3608,97066.0,97058.0,0.2060314]
[1739282918351,0.2060092,97069.0,97058.0,0.2060314]
[1739282918554,0.2060092,97069.0,97059.0,0.2060273]
[1739282918749,0.014,97066.0,97065.0,0.001]
[1739282918953,0.019,97066.0,97065.0,0.001]
[1739282919351,0.019,97066.0,97065.0,0.3618]
[1739282919547,0.00015458,97070.0,97068.0,0.2060101]
[1739282919548,0.013,97069.0,97068.0,0.2060101]
[1739282919751,0.1015458,97100.0,97084.0,0.2059755]
[1739282919752,0.2059472,97098.0,97084.0,0.2059755]
[1739282920052,0.2059472,97098.0,97086.0,0.2059719]
[1739282920450,0.1015458,97100.0,97091.0,0.3608]
[1739282920651,0.1015458,97100.0,97099.0,0.3608]
[1739282921956,0.1,97100.0,97099.0,0.3608]
[1739282922346,0.103,97100.0,97099.0,0.3618]
[1739282923458,0.109,97100.0,97099.0,0.3628]
[1739282924158,0.0802,97136.0,97099.0,0.3628]
[1739282924159,0.0827,97132.0,97099.0,0.3628]
[1739282924361,0.2058473,97145.0,97129.0,0.5666798]
[1739282924552,0.0823,97147.0,97129.0,0.5666798]
[1739282925260,0.2058615,97139.0,97129.0,0.3608]
[1739282925461,0.0823,97147.0,97129.0,0.3608]
[1739282925653,0.0823,97147.0,97134.0,0.2058686]
[1739282925654,0.2058473,97145.0,97134.0,0.2058686]
[1739282925855,0.004,97131.0,97129.0,0.3608]
[1739282926046,0.004,97131.0,97130.0,0.21689662]
[1739282926452,0.003,97131.0,97130.0,0.21689662]
[1739282926852,0.3638,97146.0,97130.0,0.02917593]
[1739282927163,0.2088476,97145.0,97135.0,0.2058674]
[1739282927365,0.2088476,97145.0,97136.0,0.01101802]
[1739282927549,0.2058476,97145.0,97135.0,0.2058674]
[1739282927865,0.2058476,97145.0,97130.0,0.002]
[1739282927866,0.3608,97146.0,97130.0,0.002]
[1739282928163,0.3608,97146.0,97131.0,0.21710809]
[1739282928164,0.2058554,97141.0,97131.0,0.21710809]
[1739282928456,0.2058618,97138.0,97130.0,0.002]
[1739282928657,0.2058744,97132.0,97110.0,0.3608]
[1739282928862,0.3608,97119.0,97117.0,0.2059041]
[1739282929364,0.5666782,97131.0,97110.0,0.3608]
[1739282929565,0.3608,97121.0,97111.0,0.01104502]
[1739282929855,0.3608,97121.0,97118.0,0.001]
[1739282930058,0.2059016,97120.0,97118.0,0.001]
[1739282930249,0.001,97119.0,97118.0,0.001]
[1739282930555,0.2069034,97119.0,97117.0,0.001]
[1739282930761,0.2069034,97119.0,97110.0,0.001]
[1739282930762,0.2059034,97119.0,97110.0,0.002]
[1739282931061,0.2059127,97114.0,97110.0,0.002]
[1739282931262,0.2059182,97112.0,97110.0,0.001]
[1739282931956,0.2059182,97112.0,97106.0,0.00015442]
[1739282932156,0.3608,97107.0,97106.0,0.00015442]
[1739282932357,0.2059182,97112.0,97106.0,0.00015442]
[1739282932754,0.3608,97107.0,97106.0,0.00015442]
[1739282933759,0.3608,97107.0,97106.0,0.00115442]
[1739282934364,0.3618,97107.0,97106.0,0.00115442]
[1739282936750,0.3618,97107.0,97106.0,0.01227808]